[Event "Early-Titled-Tuesday-Blitz-January-30-2024"]
[Site "Chess.com"]
[Date "2024.01.30"]
[Round "11"]
[White "GMKrikor"]
[Black "FGHSMN"]
[Result "0-1"]
[WhiteElo "2809"]
[BlackElo "2920"]
[TimeControl "180+1"]
[EndTime "10:13:18 PST"]
[Termination "FGHSMN won on time"]

1. Nf3 {[%clk 0:03:00.9]} 1... Nf6 {[%clk 0:02:59.6]} 2. c4 {[%clk 0:03:01.1]}
2... b6 {[%clk 0:02:59.9]} 3. Nc3 {[%clk 0:03:00.2]} 3... Bb7 {[%clk 0:03:00.5]}
4. d4 {[%clk 0:03:00.9]} 4... g6 {[%clk 0:03:00.3]} 5. Qc2 {[%clk 0:03:00.7]}
5... d5 {[%clk 0:03:00]} 6. cxd5 {[%clk 0:02:56.2]} 6... Nxd5 {[%clk 0:03:00.9]}
7. e4 {[%clk 0:02:54.9]} 7... Nxc3 {[%clk 0:03:00.5]} 8. bxc3 {[%clk 0:02:55.8]}
8... Bg7 {[%clk 0:03:00.7]} 9. Bb5+ {[%clk 0:02:56]} 9... c6 {[%clk 0:02:58]}
10. Bd3 {[%clk 0:02:56.2]} 10... O-O {[%clk 0:02:57.1]} 11. O-O {[%clk
0:02:55.8]} 11... Nd7 {[%clk 0:02:42.4]} 12. Rb1 {[%clk 0:02:48.4]} 12... c5
{[%clk 0:02:41.5]} 13. Be3 {[%clk 0:02:28.1]} 13... cxd4 {[%clk 0:02:39.3]} 14.
cxd4 {[%clk 0:02:27.7]} 14... Rc8 {[%clk 0:02:30]} 15. Qe2 {[%clk 0:02:22.5]}
15... e6 {[%clk 0:02:21.7]} 16. Rfd1 {[%clk 0:02:14.6]} 16... Qe7 {[%clk
0:02:18.4]} 17. h4 {[%clk 0:02:07.3]} 17... Nf6 {[%clk 0:02:16.8]} 18. Bg5
{[%clk 0:02:02.2]} 18... h6 {[%clk 0:02:13.4]} 19. Bd2 {[%clk 0:01:56.6]} 19...
Rfd8 {[%clk 0:02:10.1]} 20. a4 {[%clk 0:01:52.9]} 20... Bc6 {[%clk 0:01:47.1]}
21. a5 {[%clk 0:01:49.2]} 21... b5 {[%clk 0:01:41.2]} 22. Ne5 {[%clk 0:01:18.4]}
22... Be8 {[%clk 0:01:25.4]} 23. Bb4 {[%clk 0:01:11.3]} 23... Qb7 {[%clk
0:01:23.4]} 24. Bc5 {[%clk 0:01:00]} 24... a6 {[%clk 0:01:22.3]} 25. Bb6 {[%clk
0:00:58.4]} 25... Rd6 {[%clk 0:01:19.1]} 26. Bc5 {[%clk 0:00:56.3]} 26... Rdd8
{[%clk 0:01:19.6]} 27. Bb6 {[%clk 0:00:50.9]} 27... Rd6 {[%clk 0:01:19.2]} 28.
Rbc1 {[%clk 0:00:47.2]} 28... Nd7 {[%clk 0:01:09.7]} 29. Nxd7 {[%clk 0:00:41.4]}
29... Rxd7 {[%clk 0:01:01.8]} 30. Qe3 {[%clk 0:00:37.9]} 30... Rd6 {[%clk
0:00:54.7]} 31. Rxc8 {[%clk 0:00:31.8]} 31... Qxc8 {[%clk 0:00:54.3]} 32. Rc1
{[%clk 0:00:30.9]} 32... Rc6 {[%clk 0:00:54.2]} 33. Rxc6 {[%clk 0:00:30.1]}
33... Bxc6 {[%clk 0:00:51.5]} 34. h5 {[%clk 0:00:29.8]} 34... g5 {[%clk
0:00:51.5]} 35. Qc1 {[%clk 0:00:28.6]} 35... Qd7 {[%clk 0:00:48.8]} 36. Qc5
{[%clk 0:00:26.6]} 36... Bb7 {[%clk 0:00:42.1]} 37. Bc2 {[%clk 0:00:20.7]} 37...
Bf8 {[%clk 0:00:40.3]} 38. Qc3 {[%clk 0:00:16.8]} 38... b4 {[%clk 0:00:38.5]}
39. Qc4 {[%clk 0:00:15.3]} 39... Qc6 {[%clk 0:00:21.3]} 40. Bc5 {[%clk 0:00:10]}
40... e5 {[%clk 0:00:19.9]} 41. Qxb4 {[%clk 0:00:09.8]} 41... exd4 {[%clk
0:00:17.7]} 42. Bxf8 {[%clk 0:00:07.4]} 42... Qxc2 {[%clk 0:00:18.3]} 43. Bxh6
{[%clk 0:00:07.8]} 43... Qd1+ {[%clk 0:00:17.1]} 44. Kh2 {[%clk 0:00:05.8]}
44... Qxh5+ {[%clk 0:00:18]} 45. Kg1 {[%clk 0:00:06.4]} 45... Qxh6 {[%clk
0:00:17.2]} 46. Qxb7 {[%clk 0:00:06.1]} 46... Qd6 {[%clk 0:00:14.7]} 47. Qb6
{[%clk 0:00:04.7]} 47... Qd7 {[%clk 0:00:10.7]} 48. Kf1 {[%clk 0:00:02.6]} 48...
d3 {[%clk 0:00:08.2]} 49. Ke1 {[%clk 0:00:03]} 49... Qc8 {[%clk 0:00:08.1]} 50.
Qb1 {[%clk 0:00:01.7]} 50... Qc3+ {[%clk 0:00:08.1]} 51. Kd1 {[%clk 0:00:01.7]}
51... Kg7 {[%clk 0:00:07]} 52. f3 {[%clk 0:00:02.3]} 52... Kg6 {[%clk
0:00:05.9]} 53. Qc1 {[%clk 0:00:03]} 53... Qxa5 {[%clk 0:00:04.4]} 54. Qc6+
{[%clk 0:00:03.3]} 54... Kg7 {[%clk 0:00:04.6]} 55. Qd6 {[%clk 0:00:02.5]} 55...
Qc3 {[%clk 0:00:04.4]} 56. e5 {[%clk 0:00:01.5]} 56... Qc2+ {[%clk 0:00:04.9]}
0-1

[Event "Early-Titled-Tuesday-Blitz-January-30-2024"]
[Site "Chess.com"]
[Date "2024.01.30"]
[Round "11"]
[White "tolia123"]
[Black "ImportedItalianMaple"]
[Result "0-1"]
[WhiteElo "2200"]
[BlackElo "2469"]
[TimeControl "180+1"]
[EndTime "10:13:20 PST"]
[Termination "ImportedItalianMaple won by checkmate"]

1. d4 {[%clk 0:03:00.9]} 1... g6 {[%clk 0:02:58.7]} 2. e4 {[%clk 0:03:00.4]}
2... Bg7 {[%clk 0:02:57.8]} 3. Nc3 {[%clk 0:03:00.5]} 3... d5 {[%clk 0:02:58.3]}
4. exd5 {[%clk 0:02:51]} 4... Nf6 {[%clk 0:02:58.6]} 5. Bc4 {[%clk 0:02:50.2]}
5... Nbd7 {[%clk 0:02:56.1]} 6. Nf3 {[%clk 0:02:49.4]} 6... Nb6 {[%clk 0:02:56]}
7. Bb5+ {[%clk 0:02:49.1]} 7... Bd7 {[%clk 0:02:55.3]} 8. Bxd7+ {[%clk
0:02:49.2]} 8... Qxd7 {[%clk 0:02:54.2]} 9. Ne5 {[%clk 0:02:45.7]} 9... Qd6
{[%clk 0:02:52.2]} 10. Nb5 {[%clk 0:02:40.6]} 10... Qd8 {[%clk 0:02:50]} 11. c4
{[%clk 0:02:38]} 11... O-O {[%clk 0:02:33.8]} 12. O-O {[%clk 0:02:35.9]} 12...
Nfd7 {[%clk 0:02:25.6]} 13. Nxd7 {[%clk 0:02:36]} 13... Qxd7 {[%clk 0:02:25.9]}
14. Qd3 {[%clk 0:02:18.8]} 14... c6 {[%clk 0:02:21.6]} 15. dxc6 {[%clk
0:02:17.5]} 15... bxc6 {[%clk 0:02:22]} 16. Nc3 {[%clk 0:02:16.3]} 16... Qxd4
{[%clk 0:02:21.9]} 17. Qxd4 {[%clk 0:01:50.3]} 17... Bxd4 {[%clk 0:02:22.8]} 18.
Ne2 {[%clk 0:01:49.3]} 18... Bf6 {[%clk 0:02:13.2]} 19. Rb1 {[%clk 0:01:36.4]}
19... Nxc4 {[%clk 0:02:12.5]} 20. b3 {[%clk 0:01:36.7]} 20... Nd6 {[%clk
0:02:04.9]} 21. Ba3 {[%clk 0:01:35.8]} 21... Nb5 {[%clk 0:02:02.4]} 22. Bc5
{[%clk 0:01:33.7]} 22... Rfd8 {[%clk 0:02:02]} 23. Rfd1 {[%clk 0:01:33.2]} 23...
Rd5 {[%clk 0:01:59.9]} 24. a4 {[%clk 0:01:24.2]} 24... Rxc5 {[%clk 0:01:58.8]}
25. axb5 {[%clk 0:01:22.6]} 25... Rxb5 {[%clk 0:01:58.7]} 26. Rd7 {[%clk
0:01:19.8]} 26... Rab8 {[%clk 0:01:56.3]} 27. Rxa7 {[%clk 0:01:18.8]} 27... Rxb3
{[%clk 0:01:56.6]} 28. Rxb3 {[%clk 0:01:18.7]} 28... Rxb3 {[%clk 0:01:57.2]} 29.
g3 {[%clk 0:01:18.6]} 29... Rb2 {[%clk 0:01:50.6]} 30. Nf4 {[%clk 0:01:18.7]}
30... Kg7 {[%clk 0:01:25]} 31. Rc7 {[%clk 0:01:14.4]} 31... Rc2 {[%clk
0:01:20.2]} 32. Nd5 {[%clk 0:01:03.8]} 32... Rxf2 {[%clk 0:00:48.6]} 33. Kxf2
{[%clk 0:00:58.1]} 33... cxd5 {[%clk 0:00:48.8]} 34. Rd7 {[%clk 0:00:56.8]}
34... e6 {[%clk 0:00:45.2]} 35. Ke3 {[%clk 0:00:57.1]} 35... g5 {[%clk
0:00:41.1]} 36. Rb7 {[%clk 0:00:52.2]} 36... h5 {[%clk 0:00:40.3]} 37. Rd7
{[%clk 0:00:49.5]} 37... Kg6 {[%clk 0:00:40.4]} 38. Rb7 {[%clk 0:00:48.6]} 38...
Bg7 {[%clk 0:00:34.8]} 39. Re7 {[%clk 0:00:46.4]} 39... Be5 {[%clk 0:00:30.4]}
40. Re8 {[%clk 0:00:40.5]} 40... Kf5 {[%clk 0:00:20.5]} 41. Rh8 {[%clk
0:00:34.2]} 41... h4 {[%clk 0:00:20.5]} 42. Rf8 {[%clk 0:00:23.9]} 42... hxg3
{[%clk 0:00:16.9]} 43. hxg3 {[%clk 0:00:23.6]} 43... f6 {[%clk 0:00:15.7]} 44.
Kf3 {[%clk 0:00:20.5]} 44... g4+ {[%clk 0:00:15.1]} 45. Kf2 {[%clk 0:00:19.1]}
45... d4 {[%clk 0:00:14.6]} 46. Rd8 {[%clk 0:00:18.6]} 46... Ke4 {[%clk
0:00:14.7]} 47. Re8 {[%clk 0:00:18.2]} 47... Kd5 {[%clk 0:00:15.1]} 48. Rd8+
{[%clk 0:00:18.4]} 48... Bd6 {[%clk 0:00:15.7]} 49. Ke2 {[%clk 0:00:17.8]} 49...
f5 {[%clk 0:00:16]} 50. Kd3 {[%clk 0:00:17.3]} 50... e5 {[%clk 0:00:15.7]} 51.
Rf8 {[%clk 0:00:14.6]} 51... e4+ {[%clk 0:00:16.1]} 52. Kd2 {[%clk 0:00:14.2]}
52... Ke6 {[%clk 0:00:13.6]} 53. Rg8 {[%clk 0:00:12]} 53... Bxg3 {[%clk
0:00:13.2]} 54. Rg6+ {[%clk 0:00:11.7]} 54... Ke5 {[%clk 0:00:13.5]} 55. Rg8
{[%clk 0:00:11.3]} 55... Bf4+ {[%clk 0:00:13.7]} 56. Ke2 {[%clk 0:00:10.3]}
56... d3+ {[%clk 0:00:14]} 57. Kd1 {[%clk 0:00:10.8]} 57... e3 {[%clk
0:00:13.9]} 58. Re8+ {[%clk 0:00:11.1]} 58... Kd4 {[%clk 0:00:14.2]} 59. Rd8+
{[%clk 0:00:11.2]} 59... Ke4 {[%clk 0:00:14.9]} 60. Re8+ {[%clk 0:00:10.8]}
60... Be5 {[%clk 0:00:15.4]} 61. Re7 {[%clk 0:00:10.7]} 61... f4 {[%clk
0:00:15.8]} 62. Rf7 {[%clk 0:00:07.9]} 62... f3 {[%clk 0:00:15.3]} 63. Ke1
{[%clk 0:00:06.9]} 63... g3 {[%clk 0:00:15.6]} 64. Rh7 {[%clk 0:00:05.3]} 64...
g2 {[%clk 0:00:15.4]} 65. Rh4+ {[%clk 0:00:04.2]} 65... Bf4 {[%clk 0:00:16]} 66.
Rxf4+ {[%clk 0:00:02.2]} 66... Kxf4 {[%clk 0:00:15.9]} 67. Kd1 {[%clk
0:00:03.1]} 67... g1=R# {[%clk 0:00:15.2]} 0-1

[Event "Early-Titled-Tuesday-Blitz-January-30-2024"]
[Site "Chess.com"]
[Date "2024.01.30"]
[Round "11"]
[White "ChessQueen"]
[Black "crazy_but_lazy"]
[Result "0-1"]
[WhiteElo "2722"]
[BlackElo "2619"]
[TimeControl "180+1"]
[EndTime "10:13:26 PST"]
[Termination "crazy_but_lazy won by resignation"]

1. d4 {[%clk 0:02:44.3]} 1... d5 {[%clk 0:02:58.3]} 2. Nf3 {[%clk 0:02:44.1]}
2... Nf6 {[%clk 0:02:57.4]} 3. c4 {[%clk 0:02:44.3]} 3... c6 {[%clk 0:02:56.2]}
4. cxd5 {[%clk 0:02:43]} 4... cxd5 {[%clk 0:02:55]} 5. Nc3 {[%clk 0:02:43.6]}
5... Nc6 {[%clk 0:02:54.4]} 6. Bf4 {[%clk 0:02:43.8]} 6... a6 {[%clk 0:02:52.2]}
7. e3 {[%clk 0:02:42.6]} 7... Bg4 {[%clk 0:02:45.3]} 8. h3 {[%clk 0:02:42.4]}
8... Bxf3 {[%clk 0:02:32.2]} 9. Qxf3 {[%clk 0:02:39.7]} 9... e6 {[%clk
0:02:32.8]} 10. Bd3 {[%clk 0:02:38.1]} 10... Bd6 {[%clk 0:02:32.9]} 11. Bg5
{[%clk 0:02:34.9]} 11... O-O {[%clk 0:02:14.3]} 12. O-O {[%clk 0:02:34.2]} 12...
Be7 {[%clk 0:02:14.5]} 13. Rac1 {[%clk 0:02:31.5]} 13... Rc8 {[%clk 0:02:07.7]}
14. Bb1 {[%clk 0:02:31.1]} 14... Ne8 {[%clk 0:01:58.3]} 15. Bxe7 {[%clk
0:02:21.6]} 15... Qxe7 {[%clk 0:01:56.4]} 16. Na4 {[%clk 0:02:21.9]} 16... Nd6
{[%clk 0:01:54.7]} 17. b3 {[%clk 0:02:21.4]} 17... Rc7 {[%clk 0:01:37.6]} 18.
Qe2 {[%clk 0:02:20.3]} 18... g6 {[%clk 0:01:13.5]} 19. Rc5 {[%clk 0:02:17.9]}
19... b5 {[%clk 0:01:04.9]} 20. Nb2 {[%clk 0:02:13.5]} 20... Rfc8 {[%clk
0:01:05.1]} 21. Rfc1 {[%clk 0:02:12.2]} 21... Nb8 {[%clk 0:01:00.1]} 22. a4
{[%clk 0:02:08.7]} 22... Nb7 {[%clk 0:00:34.6]} 23. Rxc7 {[%clk 0:01:43.8]}
23... Rxc7 {[%clk 0:00:35.5]} 24. Qd2 {[%clk 0:01:36.3]} 24... bxa4 {[%clk
0:00:20.7]} 25. Nxa4 {[%clk 0:01:33.6]} 25... Qd6 {[%clk 0:00:16.4]} 26. Bd3
{[%clk 0:01:25.3]} 26... a5 {[%clk 0:00:16.7]} 27. g3 {[%clk 0:01:07.8]} 27...
Nd7 {[%clk 0:00:16.4]} 28. Kg2 {[%clk 0:01:06.7]} 28... Kg7 {[%clk 0:00:16.4]}
29. h4 {[%clk 0:01:06.6]} 29... h5 {[%clk 0:00:16.9]} 30. Qb2 {[%clk 0:01:01.5]}
30... Nb6 {[%clk 0:00:16.5]} 31. Nc5 {[%clk 0:01:01.3]} 31... Nd7 {[%clk
0:00:07.7]} 32. Nxb7 {[%clk 0:00:48.8]} 32... Rxb7 {[%clk 0:00:07.3]} 33. Ra1
{[%clk 0:00:43.5]} 33... Qb6 {[%clk 0:00:06.4]} 34. Bc2 {[%clk 0:00:42.6]} 34...
Nf6 {[%clk 0:00:06.2]} 35. Qc3 {[%clk 0:00:40.4]} 35... Rc7 {[%clk 0:00:05.6]}
36. Qd2 {[%clk 0:00:39.9]} 36... Ng4 {[%clk 0:00:05.4]} 37. Bd1 {[%clk 0:00:37]}
37... Qb4 {[%clk 0:00:04]} 38. Qxb4 {[%clk 0:00:34.9]} 38... axb4 {[%clk
0:00:04.9]} 39. Bxg4 {[%clk 0:00:34.8]} 39... hxg4 {[%clk 0:00:05.8]} 40. Ra4
{[%clk 0:00:34.8]} 40... Rb7 {[%clk 0:00:06.5]} 41. Kf1 {[%clk 0:00:34.5]} 41...
Kf6 {[%clk 0:00:06.6]} 42. Ke2 {[%clk 0:00:35]} 42... Kf5 {[%clk 0:00:06.8]} 43.
Kd3 {[%clk 0:00:35]} 43... Rb6 {[%clk 0:00:03.5]} 44. Ra5 {[%clk 0:00:35.3]}
44... Kf6 {[%clk 0:00:02.6]} 45. e4 {[%clk 0:00:34.7]} 45... dxe4+ {[%clk
0:00:02.7]} 46. Kxe4 {[%clk 0:00:35.6]} 46... Rc6 {[%clk 0:00:02.6]} 47. Rb5
{[%clk 0:00:34.4]} 47... Rc2 {[%clk 0:00:03.2]} 48. Rxb4 {[%clk 0:00:30.2]}
48... Rxf2 {[%clk 0:00:03.9]} 49. d5 {[%clk 0:00:18.5]} 49... exd5+ {[%clk
0:00:04.3]} 50. Kxd5 {[%clk 0:00:18.9]} 50... Kf5 {[%clk 0:00:05.1]} 51. Kd6
{[%clk 0:00:13.8]} 51... Rf3 {[%clk 0:00:02.9]} 52. Ke7 {[%clk 0:00:13.9]} 52...
Rxg3 {[%clk 0:00:01.6]} 53. Kxf7 {[%clk 0:00:14.2]} 53... Rh3 {[%clk 0:00:02.4]}
54. Rb5+ {[%clk 0:00:11.9]} 54... Kf4 {[%clk 0:00:03]} 55. Rg5 {[%clk
0:00:09.9]} 55... Rxb3 {[%clk 0:00:02.1]} 56. Rxg6 {[%clk 0:00:09.1]} 56... Rh3
{[%clk 0:00:02.7]} 57. Rh6 {[%clk 0:00:05.4]} 57... g3 {[%clk 0:00:03]} 58. h5
{[%clk 0:00:04.8]} 58... Kg5 {[%clk 0:00:02.8]} 59. Rh8 {[%clk 0:00:02.4]} 59...
Rxh5 {[%clk 0:00:03.3]} 60. Rg8+ {[%clk 0:00:02.7]} 60... Kh4 {[%clk 0:00:03.9]}
61. Kf6 {[%clk 0:00:03.1]} 61... Kh3 {[%clk 0:00:03.9]} 62. Kg6 {[%clk
0:00:02.2]} 62... Ra5 {[%clk 0:00:04.5]} 63. Kf6 {[%clk 0:00:02.5]} 63... g2
{[%clk 0:00:04.8]} 64. Rh8+ {[%clk 0:00:02.5]} 64... Kg3 {[%clk 0:00:05.4]} 65.
Rg8+ {[%clk 0:00:03]} 65... Kf2 {[%clk 0:00:06]} 0-1

[Event "Early-Titled-Tuesday-Blitz-January-30-2024"]
[Site "Chess.com"]
[Date "2024.01.30"]
[Round "11"]
[White "mbojan"]
[Black "Karttunen"]
[Result "0-1"]
[WhiteElo "2850"]
[BlackElo "2651"]
[TimeControl "180+1"]
[EndTime "10:13:28 PST"]
[Termination "Karttunen won on time"]

1. e4 {[%clk 0:02:59.8]} 1... c5 {[%clk 0:02:57.7]} 2. Nf3 {[%clk 0:03:00]} 2...
d6 {[%clk 0:02:58]} 3. d4 {[%clk 0:03:00.5]} 3... cxd4 {[%clk 0:02:58.5]} 4.
Nxd4 {[%clk 0:03:01.4]} 4... Nf6 {[%clk 0:02:58.6]} 5. Nc3 {[%clk 0:03:01.6]}
5... a6 {[%clk 0:02:59]} 6. Bg5 {[%clk 0:03:01.8]} 6... Nbd7 {[%clk 0:02:56.6]}
7. Qe2 {[%clk 0:03:02.1]} 7... e6 {[%clk 0:02:49.6]} 8. O-O-O {[%clk 0:02:59.3]}
8... Be7 {[%clk 0:02:42.3]} 9. f4 {[%clk 0:02:59.6]} 9... Qc7 {[%clk 0:02:36.1]}
10. g4 {[%clk 0:02:59.9]} 10... b5 {[%clk 0:02:17.2]} 11. a3 {[%clk 0:02:59.9]}
11... Bb7 {[%clk 0:02:17.2]} 12. Bxf6 {[%clk 0:02:56.1]} 12... Nxf6 {[%clk
0:02:14.5]} 13. g5 {[%clk 0:02:56.5]} 13... Nd7 {[%clk 0:02:12.9]} 14. h4 {[%clk
0:02:56.9]} 14... g6 {[%clk 0:01:56.4]} 15. h5 {[%clk 0:02:56]} 15... Rg8 {[%clk
0:01:56.4]} 16. hxg6 {[%clk 0:02:54.9]} 16... hxg6 {[%clk 0:01:57.3]} 17. Rh7
{[%clk 0:02:26.3]} 17... Rb8 {[%clk 0:01:41.1]} 18. f5 {[%clk 0:02:02.7]} 18...
Nf8 {[%clk 0:01:15.3]} 19. Rh3 {[%clk 0:02:02.2]} 19... Bxg5+ {[%clk 0:01:05.7]}
20. Kb1 {[%clk 0:02:02.5]} 20... e5 {[%clk 0:01:06.2]} 21. Ndxb5 {[%clk
0:02:01.1]} 21... axb5 {[%clk 0:01:02.2]} 22. Nxb5 {[%clk 0:02:01.6]} 22... Qb6
{[%clk 0:00:44.6]} 23. Nxd6+ {[%clk 0:01:58.9]} 23... Ke7 {[%clk 0:00:42.1]} 24.
Rb3 {[%clk 0:01:58.8]} 24... Qc7 {[%clk 0:00:30.5]} 25. fxg6 {[%clk 0:01:21.4]}
25... Rxg6 {[%clk 0:00:30]} 26. Nf5+ {[%clk 0:01:16.3]} 26... Kf6 {[%clk
0:00:24.8]} 27. Rd6+ {[%clk 0:01:10.5]} 27... Ne6 {[%clk 0:00:25.1]} 28. Rdb6
{[%clk 0:01:10.9]} 28... Bxe4 {[%clk 0:00:19.4]} 29. Rxb8 {[%clk 0:01:08.6]}
29... Bxf5 {[%clk 0:00:19.6]} 30. R8b7 {[%clk 0:01:02.6]} 30... Qc5 {[%clk
0:00:17.6]} 31. Qc4 {[%clk 0:00:50.9]} 31... Qg1 {[%clk 0:00:15.2]} 32. Ka2
{[%clk 0:00:48.7]} 32... Be3 {[%clk 0:00:14.1]} 33. Bd3 {[%clk 0:00:33]} 33...
Rg4 {[%clk 0:00:12.9]} 34. Qc6 {[%clk 0:00:28.6]} 34... e4 {[%clk 0:00:13]} 35.
Bc4 {[%clk 0:00:23.8]} 35... Qc1 {[%clk 0:00:12.2]} 36. Qe8 {[%clk 0:00:20.7]}
36... Rg7 {[%clk 0:00:10.4]} 37. Bd5 {[%clk 0:00:15.8]} 37... Bd4 {[%clk
0:00:10]} 38. c3 {[%clk 0:00:11.8]} 38... Be5 {[%clk 0:00:09.8]} 39. Qe7+ {[%clk
0:00:08.2]} 39... Kg6 {[%clk 0:00:09.6]} 40. Bxe6 {[%clk 0:00:05.5]} 40... Bxe6
{[%clk 0:00:09.6]} 41. Qc5 {[%clk 0:00:05.2]} 41... Bxb3+ {[%clk 0:00:07.1]} 42.
Rxb3 {[%clk 0:00:06.1]} 42... f6 {[%clk 0:00:06.8]} 43. Qd5 {[%clk 0:00:03.6]}
43... Qf4 {[%clk 0:00:06.1]} 44. Rb4 {[%clk 0:00:03.7]} 44... Kf5 {[%clk
0:00:06]} 45. Qc6 {[%clk 0:00:02.9]} 45... Qf3 {[%clk 0:00:05.6]} 46. Qc8+
{[%clk 0:00:02.8]} 46... Kf4 {[%clk 0:00:05.8]} 47. a4 {[%clk 0:00:03.5]} 47...
Rg1 {[%clk 0:00:03.6]} 48. a5 {[%clk 0:00:03.5]} 48... Qd1 {[%clk 0:00:03.8]}
49. Qh8 {[%clk 0:00:02.2]} 49... Qa1+ {[%clk 0:00:03.9]} 50. Kb3 {[%clk
0:00:03]} 50... Qxa5 {[%clk 0:00:03.8]} 51. Qh2+ {[%clk 0:00:02.4]} 51... Rg3
{[%clk 0:00:04.1]} 52. Qh4+ {[%clk 0:00:02]} 52... Rg4 {[%clk 0:00:04.5]} 53.
Qh6+ {[%clk 0:00:02.3]} 53... Kf5 {[%clk 0:00:04.7]} 54. Qh7+ {[%clk 0:00:02.3]}
54... Ke6 {[%clk 0:00:03.9]} 55. Qh8 {[%clk 0:00:01.4]} 55... Rg5 {[%clk
0:00:02.4]} 56. Qe8+ {[%clk 0:00:01.2]} 56... Kf5 {[%clk 0:00:02.7]} 57. Qd7+
{[%clk 0:00:01.8]} 57... Kf4 {[%clk 0:00:03.1]} 58. Qd2+ {[%clk 0:00:02.2]}
58... Kf3 {[%clk 0:00:02.6]} 59. Qd1+ {[%clk 0:00:02.2]} 59... Kg3 {[%clk
0:00:02.8]} 60. Qe1+ {[%clk 0:00:02.4]} 60... Kh3 {[%clk 0:00:02.6]} 61. Rxe4
{[%clk 0:00:02.2]} 61... Qb5+ {[%clk 0:00:02.5]} 62. Rb4 {[%clk 0:00:02.5]}
62... Qd5+ {[%clk 0:00:02.8]} 63. Kc2 {[%clk 0:00:02.1]} 63... Qg2+ {[%clk
0:00:02]} 64. Kb3 {[%clk 0:00:02]} 64... Qg3 {[%clk 0:00:01.2]} 0-1

[Event "Early-Titled-Tuesday-Blitz-January-30-2024"]
[Site "Chess.com"]
[Date "2024.01.30"]
[Round "11"]
[White "Boundless_Strike"]
[Black "LeoLV10"]
[Result "1-0"]
[WhiteElo "2636"]
[BlackElo "2475"]
[TimeControl "180+1"]
[EndTime "10:13:32 PST"]
[Termination "Boundless_Strike won by resignation"]

1. d4 {[%clk 0:03:00.9]} 1... Nf6 {[%clk 0:02:56.2]} 2. f3 {[%clk 0:03:01.4]}
2... d5 {[%clk 0:02:55]} 3. e4 {[%clk 0:03:01.3]} 3... dxe4 {[%clk 0:02:54.9]}
4. Nc3 {[%clk 0:03:00.7]} 4... exf3 {[%clk 0:02:45.8]} 5. Nxf3 {[%clk
0:03:00.9]} 5... c6 {[%clk 0:02:46.2]} 6. Bc4 {[%clk 0:03:00.2]} 6... e6 {[%clk
0:02:44.9]} 7. O-O {[%clk 0:02:59.7]} 7... Be7 {[%clk 0:02:44.5]} 8. Qe1 {[%clk
0:02:59.4]} 8... Nbd7 {[%clk 0:02:43.8]} 9. Bd3 {[%clk 0:02:53.3]} 9... Nb6
{[%clk 0:02:41.6]} 10. Qg3 {[%clk 0:02:48.4]} 10... g6 {[%clk 0:02:31.6]} 11.
Bg5 {[%clk 0:02:44.2]} 11... Nh5 {[%clk 0:02:31.3]} 12. Qh4 {[%clk 0:02:43.9]}
12... h6 {[%clk 0:02:27.2]} 13. Bxe7 {[%clk 0:02:35.2]} 13... Qxe7 {[%clk
0:02:28]} 14. Qxe7+ {[%clk 0:02:02]} 14... Kxe7 {[%clk 0:02:20.4]} 15. Ne5
{[%clk 0:02:02.9]} 15... Rh7 {[%clk 0:02:03.7]} 16. Nxg6+ {[%clk 0:01:17.9]}
16... fxg6 {[%clk 0:01:58.7]} 17. Bxg6 {[%clk 0:01:18.8]} 17... Rg7 {[%clk
0:01:43]} 18. Bxh5 {[%clk 0:01:18.6]} 18... Bd7 {[%clk 0:01:43.9]} 19. Rae1
{[%clk 0:01:13.5]} 19... Rag8 {[%clk 0:01:42.3]} 20. g3 {[%clk 0:01:12.8]} 20...
Nc4 {[%clk 0:01:42]} 21. Ne4 {[%clk 0:01:00.5]} 21... Rf8 {[%clk 0:01:01.6]} 22.
Rxf8 {[%clk 0:00:51.7]} 22... Kxf8 {[%clk 0:01:01.6]} 23. b3 {[%clk 0:00:51.4]}
23... Na3 {[%clk 0:00:51.9]} 24. c4 {[%clk 0:00:29]} 24... Nc2 {[%clk
0:00:51.4]} 25. Rd1 {[%clk 0:00:26.2]} 25... Ke7 {[%clk 0:00:42.6]} 26. Kf2
{[%clk 0:00:22.7]} 26... Nb4 {[%clk 0:00:41.7]} 27. a3 {[%clk 0:00:21.1]} 27...
Na6 {[%clk 0:00:41.7]} 28. b4 {[%clk 0:00:19.8]} 28... Nc7 {[%clk 0:00:41.7]}
29. Re1 {[%clk 0:00:19.8]} 29... b6 {[%clk 0:00:39.9]} 30. Nd2 {[%clk
0:00:11.3]} 30... Be8 {[%clk 0:00:30.8]} 31. Bf3 {[%clk 0:00:09.2]} 31... Kd7
{[%clk 0:00:26.8]} 32. h4 {[%clk 0:00:09.4]} 32... Bg6 {[%clk 0:00:26.3]} 33.
Re5 {[%clk 0:00:09.8]} 33... Rf7 {[%clk 0:00:23.2]} 34. Ke3 {[%clk 0:00:07.5]}
34... Bc2 {[%clk 0:00:22.4]} 35. Ne4 {[%clk 0:00:03.4]} 35... Rg7 {[%clk
0:00:20.4]} 36. g4 {[%clk 0:00:03.2]} 36... Bxe4 {[%clk 0:00:19.4]} 37. Kxe4
{[%clk 0:00:02.4]} 37... Ne8 {[%clk 0:00:19.5]} 38. Ke3 {[%clk 0:00:03]} 38...
Nd6 {[%clk 0:00:19.1]} 39. Kf4 {[%clk 0:00:03.3]} 39... Nxc4 {[%clk 0:00:18.7]}
40. Re1 {[%clk 0:00:03.2]} 40... Nd6 {[%clk 0:00:18.8]} 41. Rc1 {[%clk
0:00:03.4]} 41... Rf7+ {[%clk 0:00:14.7]} 42. Ke3 {[%clk 0:00:04]} 42... Ke7
{[%clk 0:00:07.9]} 43. Rxc6 {[%clk 0:00:03.7]} 43... Nb5 {[%clk 0:00:06.9]} 44.
a4 {[%clk 0:00:03.4]} 44... Rxf3+ {[%clk 0:00:07]} 45. Ke4 {[%clk 0:00:03.1]}
45... Rg3 {[%clk 0:00:07]} 46. axb5 {[%clk 0:00:03.3]} 46... Rxg4+ {[%clk
0:00:07.6]} 47. Ke5 {[%clk 0:00:04]} 47... Rxh4 {[%clk 0:00:05.1]} 48. Rxe6+
{[%clk 0:00:04.5]} 48... Kd8 {[%clk 0:00:05.8]} 49. Rg6 {[%clk 0:00:05.3]} 49...
Rh5+ {[%clk 0:00:05.8]} 50. Ke6 {[%clk 0:00:05.5]} 50... Rxb5 {[%clk 0:00:05.4]}
51. d5 {[%clk 0:00:05.8]} 51... Rxb4 {[%clk 0:00:05.1]} 52. Rg8+ {[%clk
0:00:06.1]} 52... Kc7 {[%clk 0:00:05.5]} 53. d6+ {[%clk 0:00:06.9]} 53... Kc6
{[%clk 0:00:04.7]} 54. Rc8+ {[%clk 0:00:07.6]} 54... Kb7 {[%clk 0:00:05.2]} 55.
d7 {[%clk 0:00:08.4]} 55... Rd4 {[%clk 0:00:02.7]} 56. d8=Q {[%clk 0:00:08.1]}
56... Rxd8 {[%clk 0:00:03.6]} 57. Rxd8 {[%clk 0:00:09]} 57... a5 {[%clk
0:00:04.1]} 58. Kd5 {[%clk 0:00:09.2]} 58... h5 {[%clk 0:00:04.3]} 59. Rh8
{[%clk 0:00:09.1]} 59... Ka6 {[%clk 0:00:03.2]} 60. Rxh5 {[%clk 0:00:09.4]}
60... Kb5 {[%clk 0:00:03.4]} 61. Kd4+ {[%clk 0:00:10.1]} 61... Kb4 {[%clk
0:00:04.3]} 62. Kd3 {[%clk 0:00:10.9]} 62... Kb3 {[%clk 0:00:04.8]} 63. Rb5+
{[%clk 0:00:10]} 63... Ka3 {[%clk 0:00:05.2]} 64. Rxb6 {[%clk 0:00:10.6]} 64...
a4 {[%clk 0:00:06]} 65. Kc2 {[%clk 0:00:11.1]} 65... Ka2 {[%clk 0:00:06.4]} 66.
Rb4 {[%clk 0:00:11.5]} 66... a3 {[%clk 0:00:06.7]} 67. Ra4 {[%clk 0:00:12]} 1-0